[Event "EYCC Girls U16 2021"]
[Site "Tornelo"]
[Date "2021.10.15"]
[Round "9.9"]
[White "Lomaia, Diana"]
[Black "Tzakosta, Konstantina"]
[Result "1/2-1/2"]
[ECO "D35"]
[WhiteElo "2111"]
[BlackElo "1089"]
[Annotator "ChessBase"]
[PlyCount "79"]
[EventDate "2021.10.15"]
[EventType "swiss"]
[EventCountry "NET"]
[SourceTitle "playchess.com"]
[Source "ChessBase"]
[SourceQuality "1"]
[TimeControl "5400+30"]

1. d4 {[%emt 0:00:30]} d5 {[%emt 0:00:54]} 2. c4 {[%emt 0:00:07]} Nf6 {[%emt 0:01:01]} 3. Nc3 {[%emt 0:00:40]} e6 {[%emt 0:00:13]} 4. cxd5 {[%emt 0:00:16]} exd5 {[%emt 0:00:31]} 5. Bg5 {[%emt 0:00:06]} Be7 {[%emt 0:00:09]} 6. e3 {[%emt 0:00:07]} c6 {[%emt 0:00:09]} 7. Bd3 {[%emt 0:00:11]} Be6 {[%emt 0:00:20]} 8. Nge2 {[%emt 0:00:22]} h6 {[%emt 0:00:12]} 9. Bh4 {[%emt 0:00:17]} g5 {[%emt 0:01:06]} 10. Bg3 {[%emt 0:00:06]} Nh5 {[%emt 0:00:38]} 11. a3 {[%emt 0:03:24]} Nd7 {[%emt 0:02:39]} 12. Qc2 {[%emt 0:02:00]} Nxg3 {[%emt 0:01:16]} 13. Nxg3 {[%emt 0:01:26]} h5 {[%emt 0:00:56]} 14. Nf5 {[%emt 0:02:14]} Bxf5 {[%emt 0:02:15]} 15. Bxf5 {[%emt 0:00:06]} Kf8 {[%emt 0:04:08]} 16. O-O {[%emt 0:04:09]} Bd6 {[%emt 0:02:33]} 17. e4 {[%emt 0:02:12]} dxe4 {[%emt 0:01:51]} 18. Nxe4 {[%emt 0:00:56]} Nb6 {[%emt 0:02:27]} 19. Qb3 {[%emt 0:09:20]} Be7 {[%emt 0:05:50]} 20. Qd3 {[%emt 0:24:35]} Qd5 {[%emt 0:08:09]} 21. Nc3 {[%emt 0:00:30]} Qc4 {[%emt 0:02:48]} 22. Qd2 {[%emt 0:11:45]} Bf6 {[%emt 0:04:57]} 23. Rfd1 {[%emt 0:02:11]} Rd8 {[%emt 0:01:31]} 24. Ne2 {[%emt 0:01:33]} Qd5 {[%emt 0:00:29]} 25. Bc2 {[%emt 0:07:22]} h4 {[%emt 0:05:40]} 26. Nc3 {[%emt 0:00:37]} Qxd4 {[%emt 0:04:42]} 27. Qe2 {[%emt 0:00:18]} Qf4 {[%emt 0:02:11]} 28. Rxd8+ {[%emt 0:00:12]} Bxd8 {[%emt 0:00:08]} 29. Rd1 {[%emt 0:03:58]} Bc7 {[%emt 0:02:55]} 30. g3 {[%emt 0:00:15]} hxg3 {[%emt 0:00:19]} 31. hxg3 {[%emt 0:00:32]} Qf6 {[%emt 0:03:42]} 32. Be4 {[%emt 0:03:04]} Be5 {[%emt 0:04:53]} 33. Qg4 {[%emt 0:04:19]} Bd4 {[%emt 0:02:04]} 34. Bf3 {[%emt 0:03:02]} Bxc3 {[%emt 0:03:23]} 35. bxc3 {[%emt 0:00:15]} Kg7 {[%emt 0:00:45]} 36. Kg2 {[%emt 0:04:46]} Qh6 {[%emt 0:01:16]} 37. Qd4+ {[%emt 0:00:13]} Qf6 {[%emt 0:01:13]} 38. Qg4 {[%emt 0:00:32]} Qh6 {[%emt 0:00:23]} 39. Qd4+ {[%emt 0:00:24]} Qf6 {[%emt 0:00:08]} 40. Qg4 {[%emt 0:01:59]} 1/2-1/2

[Event "EYCC Girls U16 2021"]
[Site "Tornelo"]
[Date "2021.10.15"]
[Round "9.10"]
[White "Mroz, Lena"]
[Black "Batagan, Ilinca-Petra"]
[Result "1-0"]
[ECO "B80"]
[WhiteElo "1775"]
[BlackElo "1977"]
[Annotator "ChessBase"]
[PlyCount "47"]
[EventDate "2021.10.15"]
[EventType "swiss"]
[EventCountry "NET"]
[SourceTitle "playchess.com"]
[Source "ChessBase"]
[SourceQuality "1"]
[TimeControl "5400+30"]

1. e4 {[%emt 0:00:30]} c5 {[%emt 0:00:34]} 2. Nf3 {[%emt 0:00:07]} d6 {[%emt 0:00:06]} 3. d4 {[%emt 0:00:07]} cxd4 {[%emt 0:00:03]} 4. Nxd4 {[%emt 0:00:08]} Nf6 {[%emt 0:00:05]} 5. Nc3 {[%emt 0:00:07]} a6 {[%emt 0:00:05]} 6. Qf3 {[%emt 0:00:22]} e6 {[%emt 0:01:37]} 7. Be3 {[%emt 0:00:17]} Be7 {[%emt 0:00:48]} 8. O-O-O {[%emt 0:00:18]} Qc7 {[%emt 0:01:29]} 9. g4 {[%emt 0:01:16]} Nc6 {[%emt 0:03:38]} 10. g5 {[%emt 0:02:26]} Nd7 {[%emt 0:02:16]} 11. Qh5 {[%emt 0:03:16]} O-O {[%emt 0:04:43]} 12. Rg1 {[%emt 0:09:22]} b5 {[%emt 0:07:00]} 13. Rg3 {[%emt 0:08:39]} Rd8 {[%emt 0:05:31]} 14. f4 {[%emt 0:10:53]} Nf8 {[%emt 0:04:26]} 15. Nxc6 {[%emt 0:07:31]} Qxc6 {[%emt 0:00:14]} 16. Bd3 {[%emt 0:00:36]} d5 {[%emt 0:16:22]} 17. Bd4 {[%emt 0:15:05]} Bc5 {[%emt 0:05:43]} 18. Bxg7 {[%emt 0:19:33]} Kxg7 {[%emt 0:02:01]} 19. Qh6+ {[%emt 0:00:15]} Kg8 {[%emt 0:00:49]} 20. exd5 {[%emt 0:00:22]} Qd6 {[%emt 0:05:20]} 21. Bxh7+ {[%emt 0:02:35]} Nxh7 {[%emt 0:00:11]} 22. g6 {[%emt 0:00:11]} Be3+ {[%emt 0:12:16]} 23. Kb1 {[%emt 0:02:20]} Qxf4 {[%emt 0:00:30]} 24. gxh7+ {[%emt 0:00:43]} 1-0

[Event "EYCC Girls U16 2021"]
[Site "Tornelo"]
[Date "2021.10.15"]
[Round "9.11"]
[White "Doll, Rebecca"]
[Black "Volovich, Julia"]
[Result "0-1"]
[ECO "C04"]
[WhiteElo "1970"]
[BlackElo "1742"]
[Annotator "ChessBase"]
[PlyCount "58"]
[EventDate "2021.10.15"]
[EventType "swiss"]
[EventCountry "NET"]
[SourceTitle "playchess.com"]
[Source "ChessBase"]
[SourceQuality "1"]
[TimeControl "5400+30"]

1. e4 {[%emt 0:00:30]} e6 {[%emt 0:00:35]} 2. d4 {[%emt 0:00:05]} d5 {[%emt 0:00:04]} 3. Nd2 {[%emt 0:00:07]} Nc6 {[%emt 0:00:06]} 4. Ngf3 {[%emt 0:00:11]} Nf6 {[%emt 0:00:06]} 5. e5 {[%emt 0:00:04]} Nd7 {[%emt 0:00:04]} 6. Be2 {[%emt 0:00:03]} f6 {[%emt 0:00:29]} 7. exf6 {[%emt 0:00:06]} Qxf6 {[%emt 0:00:22]} 8. Nf1 {[%emt 0:00:06]} Bd6 {[%emt 0:01:03]} 9. Ne3 {[%emt 0:00:09]} O-O {[%emt 0:00:20]} 10. O-O {[%emt 0:00:25]} Qg6 {[%emt 0:00:17]} 11. c4 {[%emt 0:01:00]} Nf6 {[%emt 0:04:39]} 12. c5 {[%emt 0:01:43]} Be7 {[%emt 0:00:35]} 13. Bb5 {[%emt 0:01:36]} Nd7 {[%emt 0:08:05]} 14. Bxc6 {[%emt 0:11:58]} bxc6 {[%emt 0:00:07]} 15. b4 {[%emt 0:02:58]} a5 {[%emt 0:16:44]} 16. bxa5 {[%emt 0:09:08]} e5 {[%emt 0:05:40]} 17. Nxe5 {[%emt 0:10:28]} Nxe5 {[%emt 0:00:24]} 18. dxe5 {[%emt 0:00:16]} Bxc5 {[%emt 0:02:29]} 19. Kh1 {[%emt 0:07:58]} Qe4 {[%emt 0:18:18]} 20. Bb2 {[%emt 0:11:12]} Ba6 {[%emt 0:02:57]} 21. Qc1 {[%emt 0:10:14]} Bxe3 {[%emt 0:03:01]} 22. Qxe3 {[%emt 0:00:47]} Qxe3 {[%emt 0:00:11]} 23. fxe3 {[%emt 0:00:07]} Rxf1+ {[%emt 0:00:12]} 24. Rxf1 {[%emt 0:00:11]} Bxf1 {[%emt 0:00:05]} 25. Kg1 {[%emt 0:00:04]} Bc4 {[%emt 0:00:25]} 26. Bc3 {[%emt 0:00:15]} Kf7 {[%emt 0:00:53]} 27. a3 {[%emt 0:00:06]} Ke6 {[%emt 0:00:08]} 28. Kf2 {[%emt 0:00:03]} Rf8+ {[%emt 0:00:52]} 29. Kg3 {[%emt 0:00:14]} Rf1 {[%emt 0:00:16]} 0-1

[Event "EYCC Girls U16 2021"]
[Site "Tornelo"]
[Date "2021.10.15"]
[Round "9.12"]
[White "Perez Garcia, Jimena"]
[Black "Mihaljevic, Eva"]
[Result "1/2-1/2"]
[ECO "A91"]
[WhiteElo "1914"]
[BlackElo "1708"]
[Annotator "ChessBase"]
[PlyCount "40"]
[EventDate "2021.10.15"]
[EventType "swiss"]
[EventCountry "NET"]
[SourceTitle "playchess.com"]
[Source "ChessBase"]
[SourceQuality "1"]
[TimeControl "5400+30"]

1. d4 {[%emt 0:00:30]} e6 {[%emt 0:00:48]} 2. c4 {[%emt 0:00:12]} f5 {[%emt 0:00:04]} 3. g3 {[%emt 0:00:13]} Nf6 {[%emt 0:00:06]} 4. Bg2 {[%emt 0:00:15]} Be7 {[%emt 0:00:30]} 5. Nh3 {[%emt 0:00:19]} O-O {[%emt 0:00:22]} 6. O-O {[%emt 0:00:30]} d6 {[%emt 0:01:00]} 7. b3 {[%emt 0:00:56]} Nc6 {[%emt 0:04:18]} 8. Bb2 {[%emt 0:01:39]} Qe8 {[%emt 0:01:26]} 9. Nc3 {[%emt 0:05:53]} e5 {[%emt 0:03:31]} 10. Rc1 {[%emt 0:07:57]} Nxd4 {[%emt 0:01:39]} 11. Nd5 {[%emt 0:03:24]} Nxd5 {[%emt 0:00:52]} 12. cxd5 {[%emt 0:00:43]} c5 {[%emt 0:04:35]} 13. e3 {[%emt 0:10:47]} Nb5 {[%emt 0:00:24]} 14. a4 {[%emt 0:00:58]} Nc7 {[%emt 0:01:37]} 15. Bxe5 {[%emt 0:01:54]} dxe5 {[%emt 0:00:36]} 16. d6 {[%emt 0:00:08]} Ne6 {[%emt 0:01:09]} 17. dxe7 {[%emt 0:00:40]} Qxe7 {[%emt 0:00:27]} 18. Qd5 {[%emt 0:08:27]} e4 {[%emt 0:04:02]} 19. f3 {[%emt 0:05:32]} exf3 {[%emt 0:14:01]} 20. Rxf3 {[%emt 0:04:06]} Rd8 {[%emt 0:07:47]} 1/2-1/2